Cogmind - Beta 16 @@@ ROGUE MODE // 2026.02.03 @ 00:33:32 Player: Aardbot Result: Destroyed by S-10 Pest with Light Assault Rifle Performance ------------- Evolutions (1) 500 Regions Visited (2) 400 Robots Destroyed (14) 70 Value Destroyed (303) 303 Prototype IDs (0) 0 Alien Tech Used (0) 0 Bonus (0) 0 TOTAL SCORE: 1273 Bonus ------- None Cogmind --------- Core Integrity 0/400 Matter 199/300 Energy 99/100 System Corruption 0% Temperature Cool (0) Movement Core (100) Ox1 Location -9/Materials Parts ------- > --- POWER (2) -------- (None) > --- PROPULSION (2) --- (None) > --- UTILITY (2) ------ Small Storage Unit > --- WEAPON (3) ------- (None) > --- INVENTORY (8) ---- Signal Interpreter Peak State ------------ > --- POWER ------------ Ion Engine Ion Engine > --- PROPULSION ------- Wheel Wheel > --- UTILITY ---------- Small Storage Unit Terrain Scanner > --- WEAPON ----------- Medium Laser Particle Gun Light Cannon > --- INVENTORY -------- Ion Engine Signal Interpreter EM Pulse Gun Light Assault Rifle [Rating: 10] Favorites ----------- Power Ion Engine Engine Ion Engine Propulsion Light Treads Treads Light Treads Wheel Wheel Utility Small Storage Unit Device Terrain Scanner Storage Small Storage Unit Weapon Assault Rifle Energy Gun Medium Laser Ballistic Gun Assault Rifle Ballistic Cannon Light Cannon Build | -11 -10 -9 ------- Run | Yrd Mat Mat Slots Evolved 2 | . . 2 Power 1 | . . 1 Propulsion . | . . . Utility . | . . . Weapon 1 | . . 1 Parts Attached 16 | 6 2 8 Power 3 | 1 . 2 Engine 3 | 1 . 2 Core . | . . . Reactor . | . . . Propulsion 4 | 2 . 2 Treads 2 | 2 . . Leg . | . . . Wheel 2 | . . 2 Hover . | . . . Flight . | . . . Utility 2 | 1 1 . Device 1 | . 1 . Storage 1 | 1 . . Processor . | . . . Hackware . | . . . Protection . | . . . Artifact . | . . . Weapon 7 | 2 1 4 Energy Gun 3 | . 1 2 Energy Cannon . | . . . Ballistic Gun 3 | 2 . 1 Ballistic Cannon 1 | . . 1 Launcher . | . . . Special Weapon . | . . . Impact Weapon . | . . . Slashing Weapon . | . . . Piercing Weapon . | . . . Special Melee Weapon . | . . . Unidentified Prototypes . | . . . Parts Lost 12 | . . 12 Power 3 | . . 3 Propulsion 3 | . . 3 Utility 1 | . . 1 Weapon 5 | . . 5 Highest Loss Streak 11 | . . 11 To Critical Strikes . | . . . Average Backups 6 | 4 7 4 Power 1 | . 1 . Propulsion 2 | 2 2 1 Utility . | . . 1 Weapon 1 | 1 2 1 Tool/Special . | . . . Unused Backups 3 | . 2 1 Power . | . . . Propulsion 2 | . 2 . Utility 1 | . . 1 Weapon . | . . . Tool/Special . | . . . Average Slot Usage (%) 93 | . 98 84 Engine 15 | . 14 18 Treads 22 | . 28 12 Wheel 1 | . . 5 Device 11 | . 13 9 Storage 12 | . 14 11 Energy Gun 5 | . 3 10 Ballistic Gun 19 | . 25 8 Ballistic Cannon 2 | . . 8 Peak Build Rating 10 | 6 7 10 Average Rating 6 | 4 6 7 On Entrance 4 | . 6 7 Avg Prop Armor Cover (%) . | . . . Naked Turns . | . . . Heaviest Build 24 | 13 15 24 Greatest Support 40 | 40 40 40 Greatest Overweight (x) 3 | 1 . 3 Average Overweight (x) . | . . . Largest Inventory Capacity 8 | 8 8 8 Average Capacity 7 | 7 8 8 Most Carried 8 | 8 8 7 Average Carried 6 | 4 7 4 Final Capacity 8 | 8 8 8 Final Carried 8 | 6 8 1 Class Distribution -------------------- 77% | Mutant 22% | Skirmisher Dominant Class ---------------- Mutant | -10/Materials Skirmisher | -9/Materials Resources | -11 -10 -9 ----------- Run | Yrd Mat Mat Matter Collected 426 | 246 103 77 Remotely . | . . . Salvage Created 355 | . 238 117 Parts 29 | . 14 15 Haulers Intercepted . | . . . Recyclers Shooed . | . . . Parts Field Recycled . | . . . Retrieved Matter . | . . . Parts Self-Destructed . | . . . Prevented . | . . . Parts Restored . | . . . Kills | -11 -10 -9 ------- Run | Yrd Mat Mat Combat Hostiles Destroyed 13 | . 7 6 Guns 10 | . 7 3 Cannons 3 | . . 3 Classes Destroyed 3 | . 3 . Watcher 1 | . 1 . Swarmer 7 | . 3 4 Grunt 6 | . 4 2 Best Kill Streak 4 | . 3 4 Combat Bots Only 4 | . 3 4 Max Kills in Single Turn 2 | . 2 1 Gunslinging 1 | . 1 . Exploded . | . . . Melee . | . . . Uniques/NPCs Destroyed . | . . . Combat | -11 -10 -9 -------- Run | Yrd Mat Mat Hostile Shots Fired 176 | . 57 119 Missed 39 | . 17 22 Hits 137 | . 40 97 Melee 4 | . . 4 Projectile 133 | . 40 93 Critical Strikes 5 | . 1 4 Damage Taken 1583 | . 419 1164 Core 514 | . 107 407 Absorbed by Shields . | . . . Core Remaining (%) 78 | 100 57 . Volleys Fired 48 | . 26 22 Largest 3 | . 2 3 Hottest 145 | . 40 145 Shots Fired 106 | . 52 54 Gun 90 | . 52 38 Cannon 16 | . . 16 Launcher . | . . . Special . | . . . Kinetic 84 | . 52 32 Thermal 22 | . . 22 Explosive . | . . . Electromagnetic . | . . . Robot Hit Streak 6 | . 4 6 Robot Miss Streak 6 | . 3 6 Penetration Max . | . . . Secondary Targets 1 | . 1 . Max Gunslinging Chain 1 | . 1 . Shots Hit Robots 51 | . 29 22 Core Hits 26 | . 15 11 Critical Kills . | . . . Critical Parts Destroyed . | . . . Critical Strikes 2 | . . 2 Burn 1 | . . 1 Blast 1 | . . 1 Melee Attacks . | . . . Impact . | . . . Slashing . | . . . Piercing . | . . . Sneak Attacks . | . . . Combat Hostiles . | . . . Follow-up Attacks . | . . . Damage Inflicted 718 | . 353 365 Guns 574 | . 353 221 Cannons 138 | . . 138 Explosions . | . . . Melee . | . . . Ramming 6 | . . 6 Kinetic 574 | . 353 221 Thermal 138 | . . 138 Explosive . | . . . Electromagnetic . | . . . Impact . | . . . Slashing . | . . . Piercing . | . . . Highest Corruption . | . . . Average Corruption . | . . . Corruption Purged . | . . . Corruption Blocked . | . . . Overload Shots . | . . . Overflow Damage . | . . . Projectiles . | . . . Explosions . | . . . Melee . | . . . Knockbacks 1 | . . 1 Impact . | . . . Kinetic 1 | . . 1 Secondary . | . . . Self-Inflicted Damage 2 | . . 2 Shots . | . . . Rammed 4 | . . 4 Targets Rammed 4 | . . 4 Kicked . | . . . Crushed . | . . . Highest Temperature 526 | . 27 526 Average Temperature 171 | . 11 203 Received Heat Transfer 534 | . 147 387 Effects 9 | . . 9 Shutdowns 2 | . . 2 Energy Bleed 2 | . . 2 Interference 2 | . . 2 Matter Decay 1 | . . 1 Damage (minor) 2 | . . 2 Siege Activations . | . . . Martial Activations . | . . . Shielding Activations . | . . . Robots Disrupted . | . . . Combat Hostiles . | . . . Robots Corrupted . | . . . Combat Hostiles . | . . . Parts Fried . | . . . Impact Corruptions . | . . . Robots Melted . | . . . Combat Hostiles . | . . . Parts Melted . | . . . Heat Transferred 444 | . . 444 Parts Sabotaged . | . . . Parts Stolen . | . . . Parts Stripped . | . . . Power Chain Reactions . | . . . Alert | -11 -10 -9 ------- Run | Yrd Mat Mat Maximum Alert Level . | . . . Low Security (%) 100 | 100 100 100 Level 1 . | . . . Level 2 . | . . . Level 3 . | . . . Level 4 . | . . . Level 5 . | . . . High Security . | . . . Max Security . | . . . Peak Influence 135 | . 135 70 Initial 26 | . . 26 Average 36 | . 52 26 Influence Increases 323 | . 192 131 Destroy 0b10 Robot/C 260 | . 140 120 Destroy 0b10 Robot/NC 5 | . 5 . Destroy Leader 42 | . 32 10 Destroy Structure 1 | . . 1 Lose Combat Pursuer 15 | . 15 . Influence Decreases 323 | . 128 195 Entered New Map 38 | . . 38 Time Decay 214 | . 128 86 Lost Part 71 | . . 71 Squads Dispatched 2 | . 1 1 Investigation 2 | . 1 1 Extermination . | . . . Reinforcement . | . . . Assault . | . . . Garrison . | . . . Intercept . | . . . Searches Triggered . | . . . Construction Impeded . | . . . Haulers Reinforced . | . . . Active Scanning Responses . | . . . Cargo Convoy Interrupts . | . . . Stealth | -11 -10 -9 --------- Run | Yrd Mat Mat Distress Signals 1 | . 1 . Communications Jammed . | . . . Distress Signals . | . . . Times Spotted 25 | . 9 16 Peak Tracking Total 10 | . 4 10 Tactical Retreats 1 | . 1 . Traps | -11 -10 -9 ------- Run | Yrd Mat Mat Traps Triggered 2 | . 1 1 Indirectly . | . . . Trap Hack Attempts . | . . . Triggered . | . . . Disarmed . | . . . Reprogrammed . | . . . Reused . | . . . Traps Extracted . | . . . Installed . | . . . Triggered . | . . . Machines | -11 -10 -9 ---------- Run | Yrd Mat Mat Machines Disabled . | . . . Max in Single Turn . | . . . Machines Repaired . | . . . Machines Dismantled . | . . . Machines Sabotaged . | . . . Overloaded Fab Kills . | . . . Hacking | -11 -10 -9 --------- Run | Yrd Mat Mat Machines Accessed 1 | . . 1 Terminals 1 | . . 1 Fabricators . | . . . Repair Stations . | . . . Recycling Units . | . . . Scanalyzers . | . . . Garrison Access . | . . . Total Hacks 2 | . . 2 Successful 1 | . . 1 Failed 1 | . . 1 Catastrophic . | . . . Database Lockouts . | . . . Manual . | . . . Terminals 2 | . . 2 Fabricators . | . . . Repair Stations . | . . . Recycling Units . | . . . Scanalyzers . | . . . Garrison Access . | . . . Terminal Hacks 1 | . . 1 Record 1 | . . 1 Fabricator Hacks . | . . . Repair Station Hacks . | . . . Recycling Unit Hacks . | . . . Scanalyzer . | . . . Garrison Access Hacks . | . . . Unauthorized Hacks . | . . . Terminals . | . . . Fabricators . | . . . Repair Stations . | . . . Recycling Units . | . . . Scanalyzers . | . . . Garrison Access . | . . . Data Cores Recovered . | . . . Used . | . . . Hacking Detections . | . . . Full Trace Events . | . . . Feedback Events . | . . . Feedback Blocked . | . . . Robot Schematics Acquired . | . . . Robots Built . | . . . Authchips . | . . . Time . | . . . Total Robot Build Rating . | . . . Part Schematics Acquired . | . . . Parts Built . | . . . Authchips . | . . . Time . | . . . Total Part Build Rating . | . . . Part Studies Acquired . | . . . Parts Repaired . | . . . Time . | . . . Parts Recycled . | . . . Recycled Matter . | . . . Retrieved Matter . | . . . Retrieved Components . | . . . Parts Scanalyzed . | . . . Part Schematics Acquired . | . . . Parts Damaged . | . . . Bothacking | -11 -10 -9 ------------ Run | Yrd Mat Mat Used RIF Installer . | . . . Robots Hacked . | . . . Non-combat . | . . . Combat . | . . . Robot Hacks Applied . | . . . Relay Couplers Released . | . . . Fabnet Peak Effective % . | . . . Robots Rewired . | . . . Allies Hacked . | . . . Hacks Repelled . | . . . Allies | -11 -10 -9 -------- Run | Yrd Mat Mat Total Allies . | . . . Largest Group . | . . . Highest-Rated Group . | . . . Highest-Rated Ally . | . . . Total Orders . | . . . Ally Attacks . | . . . Total Damage . | . . . Kills . | . . . Allies Corrupted . | . . . Allies Melted . | . . . Intel | -11 -10 -9 ------- Run | Yrd Mat Mat Active Infowar (turns) 583 | . 387 196 Terrain 583 | . 387 196 Robot Analysis Total . | . . . Derelict Logs Recovered . | . . . Drone Launches . | . . . Drone Recoveries . | . . . Exploration | -11 -10 -9 ------------- Run | Yrd Mat Mat Turns Passed 755 | 125 404 226 Spaces Moved 385 | 72 202 111 Core 36 | 9 . 27 Treads 328 | 63 202 63 Legs . | . . . Wheels 21 | . . 21 Hover . | . . . Flight . | . . . Fastest Speed 50 | 50 160 95 Average Speed 150 | 149 160 134 Slowest Speed 200 | 160 160 200 Overloaded Moves . | . . . Propulsion Burnouts . | . . . Robots Hopped . | . . . Potential Cave-ins . | . . . Cave-ins Triggered . | . . . Exploration Rate (%) 16 | 4 34 10 Regions Visited 2 Branch Regions . Pre-discovered Areas . | . . . Known Exits Taken . | . . . Unknown Exits Taken 2 | 1 1 . Scrap Searched . | . . . Spaces Dug . | . . . Terrain Destroyed . | . . . Melee . | . . . Projectile . | . . . AOE . | . . . Terrain Rammed . | . . . Walls Destroyed . | . . . Machines Disabled . | . . . Actions | -11 -10 -9 --------- Run | Yrd Mat Mat Total 474 | 89 238 147 Wait . | . . . Move 383 | 71 201 111 Hop . | . . . Pick Up 19 | 12 6 1 Fast Attach . | . . . Attach 16 | 6 2 8 Detach . | . . . Swap . | . . . Drop 4 | . 3 1 Fire 48 | . 26 22 Melee . | . . . Ram 4 | . . 4 Kick . | . . . Crush . | . . . Escape Stasis . | . . . Rewire . | . . . Trap . | . . . Miscellaneous . | . . . Route ------- -11/Scrapyard -10/Materials (discovered 2 exits: *Mat / [*Min]) -9/Materials History --------- Turn | Location | Event 10 | -11/Scrapyard | Discovered new exit (range 15) 126 | -11/Scrapyard | Entered Materials 323 | -10/Materials | Build established: Mutant 354 | -10/Materials | Discovered new exit (range 13) 409 | -10/Materials | Discovered new exit (range 8) 530 | -10/Materials | Entered another Materials area 530 | -9/Materials | Evolved 2 slots: Power x1, Weapon x1 726 | -9/Materials | Core integrity fell below 50% 736 | -9/Materials | Core integrity fell below 20% 756 | -9/Materials | Destroyed by S-10 Pest with Light Assault Rifle Last Messages --------------- Overheating: Energy bleed (-54). Overheating: System interference. Particle Gun temporarily disabled. Overheating: Ion Engine damaged (-17). Ion Engine destroyed. R-06 Scavenger collects Heat Sink. Critical hit (Burn: +37). EM Pulse Gun destroyed. Power failure, Ion Engine shutdown. Overheating: Energy bleed (-36). R-06 Scavenger collects Sml. Laser. Wheel destroyed. U-05 Engineer builds a Door. Particle Gun destroyed. Lgt. Assault Rifle severed. Ion Engine destroyed. Terrain Scanner destroyed. R-06 Scavenger collects Core Shielding. U-05 Engineer lays Concrete. Slammed into S-10 Pest. Map ----- +----------------------------------------------------+ | ??""""" # # #???##???"????? | | ??""""" # # ""T"" #?????????????? | | ??""""" # # """"" #??##?????????? | | ?? # # #?????????????? | | ?? # ######################+# | | ######### % % % % | | # +== [ % % | | # # === % | | # # [#################+#####? | | # #=* #????#??????#??????????? | | # ###g#???##?????????????????? | | # """ #?#[#????#?????????????????? | | # """""#?#g##?????????????????????? | | # """""#?# #?????????#????????????? | | # """""#?# #??????#???????????????? | | # """ #?#Y#???????????#??????????? | | #! #?# #???#??????????????????? | | #########?# #???#??????????????????? | | ???#?????##s#?????#????????????????? | | ?????#????#l#??????????????????????? | | ??????#?#?#s#??????"???????????????? | | ??????????# #??????????????????????? | | ??????????# ####???????????????????? | | ??????????# s #???????????????????? | | ??????????# s #???????????????????? | | ??????????#@ +???????????????????? | | ??????????# #???????????????????? | | ??????????## ##???????????????????? | | ???????????? #????????????????????? | | ???????????? +????????????????????? | | ???????????? #????????????????????? | | ???????????? #????????????????????? | | ????????????###????????????????????? | | ???????????????????????????????????? | | ???????????????????????????????????? | | ???????????????????????????????????? | | ???????????????????????????????????? | | ???????????????????????????????????? | | | | | | | | | | | | | | | | | | | | | | | | | +----------------------------------------------------+ Best States ------------- Heat Dissipation 28 Energy Generation 15 Energy Capacity 400 Matter Stores 300 Matter Capacity 300 Sight Range 16 Terrain Scan Range 14 Terrain Scan Density 10 Evasion (%) 40 Recoil Reduction 2 Item Schematics ----------------- None Robot Schematics ------------------ None Fabricated ------------ Nothing Repaired ---------- Nothing Studied --------- None Alien Tech Used ----------------- None Achievements -------------- None Challenges ------------ None Game ------ Seed AntimissileSingularityFalx Manual? 0 Play Time 00:10:54 Cumulative 1.4 hours Start 2026.02.03 @ 00:22:35 End 2026.02.03 @ 00:33:32 Sessions 1 Manual Loads 0 Difficulty Rogue Special Mode None Game No. 4 Rogue 4 Adventurer 0 Explorer 0 Win Type - Total 0 Types 0/0/0/0/0/0/0/0/0/0 Lore% 0 Gallery% 3 Achievement% 4 Wizard Run 0 Options --------- Layout 1 ASCII 0 Keyboard 0 Movement Mouse Keybinds 0 Fullscreen 1 Font 32/SmallcapsGlow Map View 50x35 Zoom Use 0% Tactical HUD 0 Map Filters NONE Filters NONE Steam 1 RUN: 86534d8f-d98b-435e-b1ac-09b0be17985f